bitfinex-derivatives/quotes_ETHF0:USTF0_20250928
["timestamp","ask_amount","ask_price","bid_price","bid_amount"]
[1759024003290,0.00253755,3999.5,3999.4,2.6983923]
[1759024003694,0.31573755,3999.5,3999.4,2.6983923]
[1759024004698,0.44463755,3999.5,3999.4,2.41809084]
[1759024004907,0.44463755,3999.5,3999.4,1.81909084]
[1759024004908,0.65943755,3999.5,3999.4,1.81909084]
[1759024005089,0.86763755,3999.5,3999.4,1.81909084]
[1759024005595,0.3132,3999.4,3999.1,1.58732084]
[1759024005902,0.7362,3999.3,3999.2,0.4617]
[1759024012501,0.7362,3999.3,3999.2,0.91152]
[1759024017100,0.7362,3999.3,3999.0,3.2078]
[1759024017305,0.423,3999.3,3999.2,1.81001084]
[1759024017800,0.7547,3999.3,3999.2,1.58731084]
[1759024018104,0.7547,3999.3,3999.2,1.84131084]
[1759024018300,0.7547,3999.3,3999.2,2.06401084]
[1759024018614,0.7547,3999.3,3999.2,1.61419084]
[1759024018797,0.7547,3999.3,3999.2,2.06401084]
[1759024019805,0.7547,3999.3,3999.2,1.61419084]
[1759024020103,0.7547,3999.3,3999.2,2.06401084]
[1759024020507,0.7547,3999.3,3999.2,1.61419084]
[1759024021007,0.7547,3999.3,3999.2,2.06401084]
[1759024021197,0.7547,3999.3,3999.2,1.61419084]
[1759024021399,1.20451,3999.3,3999.2,0.254]
[1759024022400,1.33265,3999.0,3998.9,1.13749084]
[1759024022600,1.33265,3999.0,3998.9,1.39149084]
[1759024025227,0.44988,3998.7,3998.6,4.34529084]
[1759024025504,1.20948,3998.7,3998.2,3.2078]
[1759024025803,1.20948,3998.7,3998.0,0.1491]
[1759024025804,0.3317,3998.2,3998.0,1.58745084]
[1759024026011,0.7596,3998.1,3998.0,1.81015084]
[1759024026514,0.7596,3998.1,3998.0,1.39149084]
[1759024028906,0.7596,3998.1,3997.4,0.1491]
[1759024028907,0.7596,3997.2,3997.1,1.79409504]
[1759024029211,0.7596,3996.8,3996.3,1.13749084]
[1759024029411,0.4492,3996.4,3996.3,1.34389084]
[1759024029610,0.7633,3996.4,3996.3,1.56909084]
[1759024030406,0.76629377,3996.4,3996.3,1.57108479]
[1759024031612,0.76629377,3996.4,3996.3,1.90048479]
[1759024034514,0.76629377,3996.4,3996.3,0.43359395]
[1759024034815,0.76629377,3996.4,3996.3,1.90048479]
[1759024038903,0.76629377,3996.4,3996.3,1.57108479]
[1759024039214,0.76629377,3996.4,3996.3,0.43359395]
[1759024039817,0.76629377,3996.4,3996.3,0.00199395]
[1759024040017,1.2135,3995.9,3995.8,0.2064]
[1759024040712,1.21353,3995.6,3995.5,0.2064]
[1759024040917,0.89946,3995.3,3995.2,0.2064]
[1759024041214,0.89946,3995.3,3995.2,0.20911997]
[1759024041215,1.21356,3995.3,3995.2,0.20911997]
[1759024041416,0.7633,3995.3,3995.2,0.20911997]
[1759024044211,0.7633,3995.3,3995.2,0.43431997]
[1759024048831,0.5404,3995.3,3995.2,0.43431997]
[1759024049113,3.2078,3996.3,3996.2,0.45016]
[1759024049322,3.5302,3996.3,3996.2,2.33765084]
[1759024049820,3.948,3996.3,3996.2,0.2133]
[1759024050221,3.948,3996.3,3996.2,0.75]
[1759024050823,3.948,3996.3,3996.2,0.4405]
[1759024051117,3.948,3996.3,3996.0,1.13749084]
[1759024051334,0.7402,3996.1,3996.0,0.2133]
[1759024052214,0.7402,3996.1,3996.0,0.4405]
[1759024052419,0.7402,3996.1,3996.0,0.75]
[1759024052814,0.53489377,3996.4,3996.3,0.75]
[1759024053021,0.74319377,3996.4,3996.3,1.88749084]
[1759024053324,0.74319377,3996.4,3996.0,0.0615]
[1759024053325,0.4178,3996.1,3996.0,1.35079084]
[1759024053517,0.7402,3996.1,3996.0,1.35079084]
[1759024053718,0.7402,3996.1,3996.0,1.88749084]
[1759024054322,0.5319,3996.1,3996.0,1.88749084]
[1759024055524,0.3224,3996.1,3996.0,1.88749084]
[1759024056127,0.5319,3996.1,3996.0,1.88749084]
[1759024056825,0.3224,3996.1,3996.0,1.88749084]
[1759024057328,0.7402,3996.1,3996.0,1.88749084]
[1759024060228,0.5319,3996.1,3996.0,1.88749084]
[1759024060931,0.7402,3996.1,3996.0,1.57799084]
[1759024061730,1.29340372,3996.1,3996.0,0.4405]
[1759024062829,0.55320372,3996.1,3996.0,0.8115]
[1759024063032,0.00299377,3996.4,3996.0,0.8115]
[1759024063033,0.00299377,3996.4,3996.3,0.89065]
[1759024063330,0.53489377,3996.4,3996.3,1.20015]
[1759024063528,0.74319377,3996.4,3996.3,2.33764084]
[1759024064631,0.74319377,3996.4,3996.3,1.20015]
[1759024064837,1.19333377,3996.4,3996.2,0.254]
[1759024065131,1.28199346,3996.3,3996.2,0.254]
[1759024065522,0.7402,3996.3,3996.2,1.004]
[1759024066123,0.7402,3996.3,3996.2,0.6945]
[1759024067034,0.7402,3996.3,3996.2,1.004]
[1759024069032,0.5319,3996.3,3996.2,1.004]
[1759024069222,0.3224,3996.3,3996.2,1.004]
[1759024069534,0.00299377,3996.4,3996.3,1.20015]
[1759024070125,0.32539377,3996.4,3996.3,1.20015]
[1759024070528,0.53489377,3996.4,3996.3,1.20015]
[1759024071137,0.00299377,3996.4,3996.3,1.20015]
[1759024071333,0.00299377,3996.4,3996.3,6.20015]
[1759024073731,0.3177,3997.7,3997.6,0.2105]
[1759024073940,0.5323,3997.7,3997.6,0.7477]
[1759024074238,0.2146,3997.7,3997.6,0.254]
[1759024074743,0.53406674,3997.7,3997.6,0.254]
[1759024075137,0.53406674,3997.7,3997.6,1.67382278]
[1759024075138,0.31946674,3997.7,3997.6,1.67382278]
[1759024075331,0.00176674,3997.7,3997.6,1.67382278]
[1759024075732,0.31946674,3997.7,3997.6,1.67382278]
[1759024076336,0.00176674,3997.7,3997.6,4.88162278]
[1759024076633,0.00176674,3997.7,3997.6,9.88162278]
[1759024077626,0.31946674,3997.7,3997.6,9.88162278]
[1759024077831,0.74356674,3997.7,3997.6,3.4618]
[1759024080939,0.31946674,3997.7,3997.6,3.4618]
[1759024081141,0.00176674,3997.7,3997.6,3.4618]
[1759024081338,0.31946674,3997.7,3997.6,3.4618]
[1759024085344,0.00176674,3997.7,3997.6,3.4618]
[1759024085550,0.348,3998.5,3998.4,1.10711]
[1759024085847,3.4224,3998.7,3998.6,0.88589]
[1759024086036,3.4224,3998.7,3998.6,1.36109]
[1759024086434,3.42459558,3998.7,3998.6,1.36292589]
[1759024086835,3.63409558,3998.7,3998.6,1.14172589]
[1759024087548,3.95179558,3998.7,3998.6,1.14172589]
[1759024087750,0.1352,3999.5,3998.6,9.88345867]
[1759024087955,0.1352,4000.5,4000.4,0.44969]
[1759024088254,0.55151709,4000.5,4000.4,4.88362278]
[1759024088748,0.55460069,4000.5,4000.4,4.88362278]
[1759024089347,6.9e-07,4000.5,4000.4,5.08277725]
[1759024089547,0.5674,4001.5,4001.4,0.44958]
[1759024089754,0.8956,4001.5,4001.4,0.44958]
[1759024090251,0.8956,4001.5,4001.4,1.86940278]
[1759024090451,0.89740897,4001.5,4001.4,1.86940278]
[1759024090651,0.89740897,4001.5,4001.4,1.41982278]
[1759024093448,0.89740897,4001.5,4001.3,0.70558]
[1759024093751,0.89740897,4001.5,4001.4,1.41982278]
[1759024095155,1.20998,4001.4,4001.3,0.256]
[1759024095348,0.7604,4001.4,4001.3,0.256]
[1759024100048,0.44966,4000.7,4000.5,3.2078]
[1759024100255,0.7604,4000.6,4000.5,3.2078]
[1759024100450,0.7604,4000.6,4000.5,3.4638]
[1759024101358,0.7604,4000.6,4000.5,0.256]
[1759024102660,0.3282,4000.6,4000.5,4.88362278]
[1759024103549,0.7518,4000.6,4000.5,3.4638]
[1759024103755,0.3364,4000.9,4000.8,0.44964]
[1759024103959,0.3364,4000.9,4000.8,2.12546278]
[1759024104661,0.129,4001.0,4000.8,2.12546278]
[1759024104961,0.3364,4000.9,4000.8,1.67582278]
[1759024107258,0.129,4001.0,4000.8,2.12546278]
[1759024107564,0.4654,4001.0,4000.8,1.67582278]
[1759024107865,0.3364,4000.9,4000.8,1.67582278]
[1759024108560,0.7715,4000.9,4000.8,1.67582278]
[1759024109764,0.7715,4000.9,4000.8,1.41982278]
[1759024109961,0.7715,4000.6,4000.5,3.2078]
[1759024110161,0.7715,4000.6,4000.5,4.88362278]
[1759024111862,0.7715,4000.6,4000.5,3.4638]
[1759024112061,0.7715,4000.6,4000.5,4.88362278]
[1759024117169,1.30102859,4000.6,4000.5,4.88362278]
[1759024119670,1.75069859,4000.6,4000.5,4.88362278]
[1759024121468,1.30102859,4000.6,4000.5,4.88362278]
[1759024121767,1.30115687,4000.6,4000.5,4.88362278]
[1759024122070,0.86605687,4000.6,4000.5,4.88362278]
[1759024122272,0.3364,4000.6,4000.5,4.88362278]
[1759024122768,1.01027,4000.6,4000.5,4.88362278]
[1759024123570,0.5606,4000.6,4000.5,4.88362278]
[1759024124169,1.01027,4000.6,4000.5,4.88362278]
[1759024126373,0.5606,4000.6,4000.5,4.88362278]
[1759024126571,1.01027,4000.6,4000.5,4.60064416]
[1759024127295,1.22117,4000.6,4000.5,4.60064416]
[1759024127670,0.7715,4000.6,4000.5,4.60064416]
[1759024127973,0.3364,4000.6,4000.5,4.60064416]
[1759024129475,1.22117,4000.6,4000.5,4.60064416]
[1759024129866,1.22117,4000.6,4000.1,3.2078]
[1759024129867,0.88481,4000.2,4000.1,3.2078]
[1759024130071,1.22121,4000.2,4000.1,0.255]
[1759024130272,1.75128917,4000.2,4000.1,0.255]
[1759024130669,0.4351,3999.8,3999.7,3.2078]
[1759024130968,0.4351,3999.8,3999.3,0.19648747]
[1759024130969,0.3364,3999.4,3999.3,0.19648747]
[1759024131277,0.3364,3999.4,3999.3,3.4628]
[1759024131980,0.3364,3999.4,3999.3,3.65779167]
[1759024132168,0.3364,3999.4,3999.3,4.79463583]
[1759024137966,0.1321,4000.5,4000.0,0.2532]
[1759024138279,0.1321,4000.5,4000.4,1.82374416]
[1759024138280,0.79538,4000.5,4000.4,1.82374416]
[1759024138483,0.79538,4000.5,4000.4,2.07874416]
[1759024139175,1.01648,4000.5,4000.4,0.255]
[1759024139471,1.01648,4000.5,4000.4,0.4744]
[1759024139688,1.01648,4000.5,4000.4,0.6887]
[1759024139879,0.3457,4000.5,4000.4,0.9419]
[1759024140183,0.6856,4000.5,4000.4,0.9419]
[1759024141278,0.6856,4000.5,4000.4,0.6887]
[1759024141578,0.9067,4000.5,4000.4,0.6887]
[1759024146787,0.3399,4000.5,4000.4,0.9419]
[1759024147006,1.00309,4001.3,4001.2,0.4337]
[1759024147177,1.22419,4001.3,4001.2,1.57054416]
[1759024147486,0.7746,4001.3,4001.2,1.82374416]
[1759024147885,0.7746,4001.3,4001.2,1.35624416]
[1759024148088,0.8843,4001.2,4001.1,0.255]
[1759024148284,0.7746,4001.1,4001.0,2.7078]
[1759024148588,5.7746,4001.1,4001.0,2.7078]
[1759024150690,5.7746,4001.1,3999.7,3.2078]
[1759024150691,0.89406,3999.8,3999.7,3.2078]
[1759024150886,1.23326,3999.8,3999.7,3.6774]
[1759024151076,1.23326,3999.8,3999.7,3.4224]
[1759024151280,1.23326,3999.8,3999.7,4.0045]
[1759024151478,1.23326,3999.8,3999.7,4.2197]
[1759024151886,1.23326,3999.8,3999.7,0.255]
[1759024152197,6.23326,3999.8,3999.7,0.255]
[1759024152691,0.9131,3999.5,3999.1,0.3271]
[1759024152892,0.89415,3999.0,3998.9,1.0119]
[1759024153082,0.44983,3999.2,3998.9,2.14874416]
[1759024153291,0.2168,3999.1,3999.0,0.8824]
[1759024154194,0.4443,3999.1,3999.0,0.8824]
[1759024154489,0.7835,3999.1,3999.0,0.8824]
[1759024154793,0.7835,3999.1,3999.0,0.5417]
[1759024155088,0.7835,3999.1,3998.6,0.00183589]
[1759024155089,1.23338,3998.7,3998.6,0.00183589]
[1759024155285,1.23640523,3998.7,3998.6,0.00183589]
[1759024156382,1.23640523,3998.7,3998.6,0.54353589]
[1759024156383,0.78652523,3998.7,3998.6,0.54353589]
[1759024156585,0.44732523,3998.7,3998.6,0.75873589]
[1759024157496,0.78652523,3998.7,3998.6,0.75873589]
[1759024160903,1.92336939,3998.7,3998.6,0.00183589]
[1759024162700,0.78652523,3998.7,3998.6,0.21643589]
[1759024162901,0.78652523,3998.7,3998.6,0.75873589]
[1759024163805,0.21982523,3998.7,3998.6,0.75873589]
[1759024164006,0.00302523,3998.7,3998.6,0.75873589]
[1759024170308,0.44977,3999.7,3999.6,0.7559]
[1759024170510,0.66217,3999.7,3999.6,1.89274416]
[1759024171211,0.66486578,3999.7,3999.6,1.89274416]
[1759024171809,1.21312,3999.2,3999.1,0.5349]
[1759024172900,1.21316,3998.9,3998.8,0.7]
[1759024173510,0.88436,3998.9,3998.8,1.0109]
[1759024174218,1.21316,3998.9,3998.8,1.0109]
[1759024175717,0.88436,3998.9,3998.8,1.0109]
[1759024177014,0.00269578,3999.7,3998.8,0.7]
[1759024177218,1.21576578,3999.7,3999.6,0.5349]
[1759024177419,1.21576578,3999.7,3999.6,0.7559]
[1759024177614,0.57379,3999.5,3999.4,1.13684416]
[1759024177818,1.00829,3999.5,3999.4,1.58184416]
[1759024178119,1.33709,3999.5,3999.4,1.58184416]
[1759024179706,0.2124,3999.2,3999.1,0.255]
[1759024180022,0.7633,3999.2,3999.1,0.255]
[1759024181117,1.29374174,3999.2,3999.1,0.255]
[1759024181325,0.7633,3998.9,3998.8,1.36084416]
[1759024181520,0.7633,3998.9,3998.8,1.58184416]
[1759024182211,1.21316,3998.9,3998.8,1.58184416]
[1759024182820,1.21316,3998.9,3998.8,1.89274416]
[1759024187125,1.21317,3998.8,3998.7,1.39184416]
[1759024187422,1.21317,3998.8,3998.7,1.61584416]
[1759024187926,1.21317,3998.8,3998.7,1.83684416]
[1759024188118,1.21317,3998.8,3998.7,2.14774416]
[1759024188613,1.21317,3998.8,3998.7,1.0109]
[1759024193129,0.7633,3998.8,3998.7,1.0109]
[1759024193328,1.21317,3998.8,3998.7,1.0109]
[1759024196229,0.7633,3998.8,3998.7,1.0109]
[1759024198240,1.21317,3998.8,3998.7,1.0109]
[1759024198540,0.7633,3998.8,3998.7,1.0109]
[1759024198925,1.21317,3998.8,3998.7,1.0109]
[1759024199931,0.7633,3998.8,3998.7,1.0109]
[1759024200730,1.21317,3998.8,3998.7,1.0109]
[1759024200932,0.7633,3998.8,3998.7,1.0109]
[1759024201635,0.7633,3998.8,3998.7,1.46078]
[1759024201830,0.124,3999.0,3998.7,1.46078]
[1759024201831,0.99073,3999.2,3999.1,0.5273]
[1759024202026,1.52239151,3999.2,3999.1,0.5273]
[1759024202226,1.07256151,3999.2,3999.1,2.85559255]
[1759024202529,0.3337,3999.6,3999.4,0.3198]
[1759024202733,0.5409,3999.6,3999.5,0.9876]
[1759024203133,0.7555,3999.6,3999.5,0.9876]
[1759024203332,0.7555,3999.6,3999.5,0.6678]
[1759024204238,0.7555,3999.6,3999.5,0.9876]
[1759024205131,0.3337,3999.6,3999.5,0.9876]
[1759024205332,0.00269578,3999.7,3999.6,0.7336]
[1759024207937,0.33639578,3999.7,3999.6,0.7336]
[1759024208133,0.33639578,3999.7,3999.3,3.2078]
[1759024208134,0.58569,3999.5,3999.3,3.2078]
[1759024208332,0.7555,3999.4,3999.3,3.4153]
[1759024208538,0.7555,3999.4,3999.3,3.6693]
[1759024208834,0.3337,3999.4,3999.3,4.1954]
[1759024209030,0.45246578,3999.7,3999.6,0.7336]
[1759024209031,0.00269578,3999.7,3999.6,0.7336]
[1759024209237,0.00269578,3999.7,3999.6,2.39625255]
[1759024212939,0.00269578,3999.7,3999.6,7.39625255]
[1759024218345,0.00269578,3999.7,3999.6,2.39625255]
[1759024222942,0.00269578,3999.7,3999.6,2.84603255]
[1759024227355,0.55889578,3999.7,3999.6,2.84603255]
[1759024227747,0.00269578,3999.7,3999.6,2.84603255]
[1759024228245,6.23466578,3999.7,3999.6,0.254]
[1759024228450,0.7822,3999.1,3999.0,0.2256]
[1759024228651,0.7822,3999.1,3999.0,2.43685255]
[1759024230452,0.7822,3999.1,3999.0,2.10695255]
[1759024232154,0.7822,3999.1,3999.0,2.43685255]
[1759024232751,0.5615,3999.1,3999.0,2.43685255]
[1759024233054,0.3355,3999.1,3999.0,2.43685255]
[1759024233253,0.5562,3999.1,3999.0,2.43685255]
[1759024234351,0.5562,3999.1,3998.9,3.2078]
[1759024234352,1.36655,3999.0,3998.9,3.2078]
[1759024234547,0.5562,3998.7,3998.6,0.76653589]
[1759024234744,0.3355,3999.1,3999.0,0.7647]
[1759024234952,0.3552,3999.5,3999.4,0.2256]
[1759024235150,0.3552,3999.5,3999.4,1.0187]
[1759024235151,0.9167,3999.5,3999.4,1.0187]
[1759024236258,0.7822,3999.5,3999.4,1.0187]
[1759024238261,0.9167,3999.5,3999.4,1.0187]
[1759024239657,0.33819578,3999.7,3999.6,0.4348]
[1759024239850,0.55889578,3999.7,3999.6,1.0187]
[1759024240057,0.78489578,3999.7,3999.6,1.0187]
[1759024243254,0.00269578,3999.7,3999.6,2.43685255]
[1759024245366,0.00269578,3999.7,3999.6,2.88663255]
[1759024245560,0.00269578,3999.7,3999.6,2.43685255]
[1759024245869,1.23466578,3999.7,3999.6,2.10695255]
[1759024246061,1.23466578,3999.7,3999.6,0.4796]
[1759024246753,0.78489578,3999.7,3999.6,0.2256]
[1759024247061,0.78489578,3999.7,3999.6,0.254]
[1759024247952,0.7822,3999.4,3999.3,3.4334]
[1759024248157,0.7822,3999.4,3999.3,3.6874]
[1759024248553,0.7822,3999.4,3999.3,4.8250663]
[1759024248763,0.7822,3999.4,3999.3,5.0342663]
[1759024249866,0.7822,3999.4,3999.3,5.3641663]
[1759024253968,0.87506578,3999.7,3999.6,0.7624]
[1759024254268,0.42529578,3999.7,3999.6,2.1540663]
[1759024254467,0.74629578,3999.7,3999.6,2.1540663]
[1759024255569,1.19606578,3999.7,3999.6,2.1540663]
[1759024257270,0.74629578,3999.7,3999.6,2.1540663]
[1759024257662,1.19606578,3999.7,3999.6,0.254]
[1759024257864,0.7436,3999.1,3999.0,0.2129]
[1759024258163,0.7436,3999.1,3999.0,1.6045663]
[1759024258366,0.5286,3999.1,3999.0,2.1540663]
[1759024258572,0.57959,3999.5,3999.0,2.7269063]
[1759024258764,0.9784,3999.4,3999.3,1.5582663]
[1759024258964,0.9784,3999.4,3999.3,2.1540663]
[1759024260266,0.321,3999.6,3999.5,0.7624]
[1759024260472,0.00269578,3999.7,3999.6,0.4206]
[1759024260671,0.00269578,3999.7,3999.6,2.3498463]
[1759024260867,0.74629578,3999.7,3999.6,0.6746]
[1759024261567,0.74629578,3999.7,3999.6,1.0164]
[1759024262264,0.74629578,3999.7,3999.6,0.6746]
[1759024263171,0.74629578,3999.7,3999.6,0.4669]
[1759024263770,0.74629578,3999.7,3999.6,0.6746]
[1759024263966,0.74629578,3999.7,3999.6,1.0164]
[1759024264172,0.53129578,3999.7,3999.6,1.0164]
[1759024264673,0.53129578,3999.7,3999.6,2.1540663]
[1759024264967,0.32369578,3999.7,3999.6,2.1540663]
[1759024265268,0.00269578,3999.7,3999.6,2.1540663]
[1759024265873,0.53129578,3999.7,3999.6,2.1540663]
[1759024266374,0.74629578,3999.7,3999.6,1.0164]
[1759024266672,0.74629578,3999.7,3999.6,0.6746]
[1759024269368,1.19606578,3999.7,3999.6,0.6746]
[1759024269781,1.2067,3999.4,3999.3,3.2078]
[1759024269969,1.2067,3999.4,3999.3,3.4618]
[1759024270169,1.2067,3999.4,3999.3,3.6781]
[1759024271371,0.7569,3999.4,3999.3,5.0259663]
[1759024271570,0.7569,3999.4,3999.3,5.3485663]
[1759024272875,0.44979,3999.5,3999.3,5.7983763]
[1759024273073,0.3201,3999.5,3999.4,0.7491]
[1759024273276,0.5421,3999.5,3999.4,0.7491]
[1759024275579,0.8805,3999.5,3999.4,1.8867663]
[1759024276777,0.8805,3999.5,3999.4,1.5641663]
[1759024276778,1.33029,3999.5,3999.4,1.5641663]
[1759024277378,0.7569,3999.5,3999.4,1.8867663]
[1759024277581,1.33029,3999.5,3999.4,1.5641663]
[1759024277775,1.33029,3999.5,3999.3,3.4618]
[1759024277776,1.2067,3999.4,3999.3,0.254]
[1759024277981,1.73850099,3999.4,3999.3,0.254]
[1759024278184,1.01025,3999.0,3998.9,4.5617663]
[1759024278379,1.33035,3999.0,3998.9,4.8157663]
[1759024279083,1.33035,3999.0,3998.9,3.4618]
[1759024280286,1.33035,3999.0,3998.9,4.8157663]
[1759024283084,1.33035,3999.0,3998.9,0.4703]
[1759024283589,0.8805,3999.0,3998.6,1.13950219]
[1759024283785,0.8805,3999.0,3998.6,0.00183589]
[1759024283786,1.20598,3998.7,3998.6,0.00183589]
[1759024284079,1.20598,3998.7,3998.6,0.25583589]
[1759024284680,1.3337,3998.5,3998.4,3.4196]
[1759024284873,1.3337,3998.5,3998.4,3.6736]
[1759024285079,1.3337,3998.5,3998.4,3.4618]
[1759024285676,1.3337,3998.5,3998.4,3.46429408]
[1759024285878,1.3337,3998.5,3998.4,0.00249408]
[1759024287579,0.44994,3998.2,3998.0,3.2078]
[1759024287886,0.44994,3998.2,3997.6,0.4322]
[1759024287887,1.2061,3997.7,3997.6,0.4322]
[1759024288084,1.2061,3997.7,3997.6,1.0004]
[1759024288595,1.2061,3997.7,3997.6,1.00244442]
[1759024289597,0.7561,3997.7,3997.6,1.00244442]
[1759024291487,0.3279,3998.3,3998.1,0.44994]
[1759024291791,3.2078,3998.6,3998.5,0.7464]
[1759024291792,3.7559,3998.6,3998.5,0.7464]
[1759024293486,0.5481,3998.6,3998.5,0.7464]
[1759024293691,0.7561,3998.6,3998.5,0.7464]
[1759024296391,0.5481,3998.6,3998.5,0.7464]
[1759024296892,0.3279,3998.6,3998.5,0.7464]
[1759024299683,3.78125,3999.0,3998.6,0.44989]
[1759024299887,0.7561,3998.9,3998.8,0.7464]
[1759024300387,0.7561,3999.3,3999.2,0.4322]
[1759024300590,0.7561,3999.3,3999.2,0.7464]
[1759024301589,0.5481,3999.3,3999.2,0.7464]
[1759024301791,0.7561,3999.3,3999.2,0.7464]
[1759024302297,0.5481,3999.3,3999.2,0.7464]
[1759024302496,3.2078,3999.5,3999.4,0.7464]
[1759024302798,3.5357,3999.5,3999.4,2.1380663]
[1759024302997,3.7559,3999.5,3999.4,2.1380663]
[1759024303601,0.5481,3998.8,3998.7,0.7464]
[1759024303795,0.5481,3998.8,3998.7,2.1380663]
[1759024304193,0.7561,3998.8,3998.7,2.5879463]
[1759024304793,0.5481,3998.8,3998.7,2.5879463]
[1759024308398,0.5481,3999.2,3999.1,0.88203]
[1759024308704,0.7561,3999.2,3999.1,1.8238663]
[1759024309601,0.7561,3999.2,3999.1,2.1380663]
[1759024310604,0.7561,3999.2,3999.1,0.254]
[1759024311298,1.20592,3999.2,3999.1,0.254]
[1759024313606,0.7561,3999.2,3999.1,0.254]
[1759024314099,0.7561,3999.2,3999.1,0.4658]
[1759024315004,1.20592,3999.2,3999.1,0.4658]
[1759024315202,1.20592,3999.2,3999.1,0.254]
[1759024319706,0.7625,3998.8,3998.7,0.254]
[1759024320406,0.7625,3998.8,3998.7,0.70388]
[1759024320600,0.7625,3998.8,3998.7,0.92768]
[1759024321505,1.21237,3998.8,3998.7,0.4778]
[1759024321803,1.21237,3998.8,3998.7,0.254]
[1759024322006,1.21237,3998.8,3998.7,0.4778]
[1759024322200,0.7625,3998.8,3998.7,0.4778]
[1759024323008,1.21237,3998.8,3998.7,0.4778]
[1759024324706,0.3408,3999.4,3998.8,0.3081]
[1759024324904,0.5465,3999.4,3999.3,1.19001]
[1759024325106,1.07718621,3999.4,3999.3,1.19001]
[1759024325417,3.2078,3999.5,3999.4,0.3081]
[1759024325707,3.2078,3999.5,3999.4,2.15833406]
[1759024326802,0.00269578,3999.7,3999.6,0.7402]
[1759024327109,0.34349578,3999.7,3999.6,0.9942]
[1759024328610,0.76519578,3999.7,3999.6,0.9942]
[1759024328809,0.76519578,3999.7,3999.6,0.6861]
[1759024329107,0.76519578,3999.7,3999.6,0.2238]
[1759024329405,0.746,3999.2,3999.1,3.4618]
[1759024330405,0.746,3999.2,3999.1,3.2078]
[1759024330815,0.746,3999.2,3999.1,3.9627]
[1759024331307,0.3193,3999.2,3999.1,3.9627]
[1759024331543,0.74869578,3999.7,3999.6,0.4376]
[1759024331709,0.746,3999.2,3999.1,3.2078]
[1759024332015,0.746,3998.9,3998.8,1.45877]
[1759024332607,0.3193,3998.8,3998.6,3.2078]
[1759024332805,0.746,3998.7,3998.6,3.88319]
[1759024333006,0.746,3998.7,3998.6,0.4795]
[1759024334813,0.746,3998.7,3998.6,0.2255]
[1759024335020,0.746,3998.7,3998.6,0.4795]
[1759024336411,0.746,3998.7,3998.6,0.254]
[1759024336713,0.746,3998.3,3998.2,3.4333]
[1759024336909,0.1357,3998.5,3997.9,0.2255]
[1759024336910,0.8817,3998.0,3997.9,0.2255]
[1759024337108,0.8817,3998.0,3997.9,0.4795]
[1759024338621,0.8817,3998.0,3997.9,0.6916]
[1759024338820,0.8817,3998.0,3997.9,1.0089]
[1759024344019,0.7682,3997.7,3997.6,0.00204442]
[1759024344416,0.7682,3997.7,3997.6,0.21594442]
[1759024344621,0.7682,3997.7,3997.6,0.00204442]
[1759024345517,0.7682,3997.7,3997.6,0.21594442]
[1759024346620,0.7682,3997.7,3997.6,0.00204442]
[1759024350821,0.7682,3997.7,3997.6,0.77444442]
[1759024351022,0.7682,3997.7,3997.6,1.02844442]
[1759024351719,0.1357,3998.0,3997.6,1.02844442]
[1759024351720,0.2131,3998.0,3997.9,0.7724]
[1759024351920,0.5649,3998.0,3997.9,0.254]
[1759024352128,0.5649,3998.0,3997.9,0.4679]
[1759024352319,0.9049,3998.0,3997.9,0.4679]
[1759024356133,0.9049,3998.0,3997.9,0.254]
[1759024356923,0.7682,3997.7,3997.6,0.00204442]
[1759024358925,0.7682,3997.7,3997.6,0.77444442]
[1759024360127,0.5531,3997.7,3997.6,0.77444442]
[1759024360426,0.34,3997.9,3997.6,0.43734442]
[1759024360621,0.6898,3998.0,3997.9,0.88527]
[1759024360825,0.34,3998.0,3997.9,1.22237]
[1759024361025,0.5531,3998.0,3997.9,1.22237]
[1759024363219,0.9049,3998.0,3997.9,1.22237]
[1759024363425,0.9049,3998.0,3997.9,0.4353]
[1759024363624,0.9049,3998.0,3997.8,0.254]
[1759024364014,0.34,3997.9,3997.8,0.70398]
[1759024364220,0.7682,3997.9,3997.8,0.91788]
[1759024368028,0.7682,3997.9,3997.8,0.254]
[1759024368249,0.44998,3997.8,3997.6,0.00204442]
[1759024368429,1.2994029,3997.7,3997.6,0.00204442]
[1759024368824,2.71753696,3997.7,3997.6,0.00204442]
[1759024371149,1.2994029,3997.7,3997.6,0.00204442]
[1759024372428,0.2131,3997.2,3997.1,3.9802]
[1759024372738,0.5531,3997.2,3997.1,5.56915118]
[1759024373034,0.7682,3997.2,3997.1,5.56915118]
[1759024373430,0.7682,3997.2,3997.1,5.57205918]
[1759024378237,0.5531,3997.2,3997.1,5.57205918]
[1759024378541,3.2078,3997.9,3997.6,0.337]
[1759024378744,0.4535,3997.7,3997.6,0.7822]
[1759024379041,1.32505526,3997.7,3997.6,0.4452]
[1759024379243,1.32505526,3997.7,3997.6,0.8952]
[1759024380140,0.7946,3997.7,3997.6,1.2322]
[1759024380341,3.2078,3997.9,3997.8,0.44998]
[1759024380532,4.30498199,3997.9,3997.8,1.23218]
[1759024381133,0.53048199,3997.9,3997.8,1.23218]
[1759024381338,3.2078,3998.3,3997.8,1.23218]
[1759024381339,3.5489,3998.3,3998.2,1.23213]
[1759024381533,3.2078,3998.7,3998.6,1.23209]
[1759024381739,3.2078,3998.7,3998.6,2.62498118]
[1759024382444,0.5667,3999.0,3998.9,1.23206]
[1759024382743,0.87153961,3999.0,3998.9,1.23206]
[1759024383043,1.09713961,3999.0,3998.9,1.48606]
[1759024383237,0.5667,3999.0,3998.9,1.48606]
[1759024383638,0.5667,3999.0,3998.9,2.62495118]
[1759024384339,4.47219118,3999.5,3999.2,0.44982]
[1759024384640,0.5667,3999.3,3999.2,0.7822]
[1759024384845,3.2078,3999.5,3999.4,1.232]
[1759024385041,0.00269578,3999.7,3999.6,1.23198]
[1759024385237,0.00269578,3999.7,3999.6,2.62487118]
[1759024387844,0.00269578,3999.7,3999.6,7.62487118]